fUST/lending_fUST_20240917
["ID","MTS","AMOUNT","RATE_DAILY","PERIOD"]
[338398774,1726584336661,500.0,0.00024,60]
[338398775,1726584338662,500.0,0.00024,60]
[338398776,1726584338746,790.56,0.00024,60]
[338398777,1726584339216,226.43769054,0.00024,60]
[338398778,1726584339641,2538.14,0.00024,60]
[338398779,1726584340838,500.0,0.00024,60]
[338398780,1726584341217,1531.51,0.00024,60]
[338398781,1726584341275,500.0,0.00024,60]
[338398782,1726584342124,543.05,0.00024,60]
[338398783,1726584342272,500.0,0.00024,60]
[338398784,1726584344355,500.0,0.00024,60]
[338398785,1726584347948,500.0,0.00024,60]
[338398786,1726584348240,2031.83,0.00024,60]
[338398787,1726584348837,1062.53,0.00024,60]
[338398788,1726584348962,500.0,0.00024,60]
[338398789,1726584349416,557.77,0.00024,60]
[338398790,1726584349971,688.95,0.00024,60]
[338398791,1726584350039,500.0,0.00024,60]
[338398792,1726584351534,500.0,0.00024,60]
[338398793,1726584351592,500.0,0.00024,60]
[338398794,1726584353020,500.0,0.00024,60]
[338398795,1726584353840,5899.35,0.00024,60]
[338398796,1726584355194,500.0,0.00024,60]
[338398797,1726584355267,1725.44,0.00024,60]
[338398798,1726584355884,500.0,0.00024,60]
[338398799,1726584356176,500.0,0.00024,60]
[338398800,1726584357162,1830.66,0.00024,60]
[338398801,1726584358377,500.0,0.00024,60]
[338398802,1726584358436,500.0,0.00024,60]
[338398804,1726584360209,500.0,0.00024,60]
[338398805,1726584360949,500.0,0.00024,60]
[338398806,1726584361081,1709.1,0.00024,60]
[338398807,1726584362694,500.0,0.00024,60]
[338398808,1726584364265,812.82,0.00024,60]
[338398809,1726584365134,500.0,0.00024,60]
[338398810,1726584367131,500.0,0.00024,60]
[338398811,1726584367410,500.0,0.00024,60]
[338398812,1726584367578,194.78151349,0.00024,60]
[338398813,1726584368265,500.0,0.00024,60]
[338398814,1726584369177,760.45,0.00024,60]
[338398815,1726584369374,1262.12,0.00024,60]
[338398816,1726584369542,578.45550234,0.00024,60]
[338398817,1726584371242,750.03,0.00024,60]
[338398818,1726584371300,500.0,0.00024,60]
[338398819,1726584372598,501.24822916,0.00024,60]
[338398820,1726584374003,500.0,0.00024,60]
[338398821,1726584374098,415.60277028,0.00024,60]
[338398822,1726584375010,500.0,0.00024,60]
[338398823,1726584376315,151.00820477,0.00024,60]
[338398824,1726584376476,495.8129022,0.00024,60]
[338398825,1726584376912,571.49,0.00024,60]
[338398826,1726584377117,500.0,0.00024,60]
[338398827,1726584377955,500.0,0.00024,60]
[338398828,1726584378343,500.0,0.00024,60]
[338398829,1726584378489,500.0,0.00024,60]
[338398830,1726584378551,500.0,0.00024,60]
[338398831,1726584381038,849.09,0.00024,60]
[338398832,1726584382614,500.0,0.00024,60]
[338398833,1726584382685,2717.85,0.00024,60]
[338398834,1726584382754,500.0,0.00024,60]
[338398835,1726584383147,779.93,0.00024,60]
[338398836,1726584383852,789.04,0.00024,60]
[338398837,1726584383922,500.0,0.00024,60]
[338398838,1726584385079,500.0,0.00024,60]
[338398839,1726584388365,500.0,0.00024,60]
[338398840,1726584388901,1223.61,0.00024,60]
[338398841,1726584389099,500.0,0.00024,60]
[338398842,1726584390205,807.52,0.00024,60]
[338398843,1726584391267,500.0,0.00024,60]
[338398844,1726584391942,1966.51,0.00024,60]
[338398845,1726584392691,500.0,0.00024,60]
[338398846,1726584393518,607.71,0.00024,60]
[338398847,1726584395382,500.0,0.00024,60]
[338398848,1726584395445,252.40120368,0.00024,60]
[338398849,1726584395975,500.0,0.00024,60]
[338398850,1726584396239,500.0,0.00024,60]
[338398851,1726584396377,668.25,0.00024,60]
[338398852,1726584396468,1200.99,0.00024,60]
[338398853,1726584397375,500.0,0.00024,60]
[338398854,1726584397952,641.8,0.00024,60]
[338398855,1726584398503,1000.0,0.00024,60]
[338398856,1726584399661,527.1,0.00024,60]
[338398858,1726584400658,500.0,0.00024,60]
[338398859,1726584401403,1197.85,0.00024,60]
[338398860,1726584402106,500.70056448,0.00024,60]
[338398861,1726584405235,500.0,0.00024,60]
[338398862,1726584406303,1008.31,0.00024,60]
[338398864,1726584407169,500.0,0.00024,60]
[338398865,1726584408335,500.0,0.00024,60]
[338398866,1726584409121,500.0,0.00024,60]
[338398867,1726584409573,1382.67,0.00024,60]
[338398868,1726584409634,190.88325698,0.00024,60]
[338398869,1726584409800,1990.46,0.00024,60]
[338398870,1726584411176,500.0,0.00024,60]
[338398871,1726584411791,500.0,0.00024,60]
[338398872,1726584412025,500.0,0.00024,60]
[338398873,1726584412466,719.84,0.00024,60]
[338398874,1726584413179,500.0,0.00024,60]
[338398875,1726584413299,1487.55,0.00024,60]
[338398876,1726584414784,1721.8,0.00024,60]
[338398877,1726584416593,500.0,0.00024,60]
[338398878,1726584416658,781.78,0.00024,60]
[338398879,1726584417322,705.06,0.00024,60]
[338398880,1726584418300,500.0,0.00024,60]
[338398881,1726584420474,500.0,0.00024,60]
[338398882,1726584420938,529.67,0.00024,60]
[338398883,1726584421365,8188.97,0.00024,60]
[338398884,1726584421517,500.0,0.00024,60]
[338398885,1726584421999,500.0,0.00024,60]
[338398886,1726584423428,500.0,0.00024,60]
[338398887,1726584423490,1759.83,0.00024,60]
[338398888,1726584423596,4885.97,0.00024,60]
[338398889,1726584425612,500.0,0.00024,60]
[338398890,1726584425971,500.0,0.00024,60]
[338398891,1726584427254,500.0,0.00024,60]
[338398892,1726584428253,860.96,0.00024,60]
[338398893,1726584428360,612.89,0.00024,60]
[338398894,1726584428951,500.0,0.00024,60]
[338398895,1726584431095,2450.04,0.00024,60]
[338398896,1726584431656,525.35459457,0.00024,60]
[338398897,1726584432099,-219.13320582,0.00014303,2]
[338398898,1726584432123,-166.56387336,0.00014403,2]
[338398899,1726584432148,-264.63265692,0.00014502,2]
[338398900,1726584432986,8755.23,0.00024,60]
[338398901,1726584433230,500.0,0.00024,60]
[338398902,1726584433397,500.0,0.00024,60]
[338398903,1726584433465,1747.4,0.00024,60]
[338398904,1726584433640,500.0,0.00024,60]
[338398905,1726584434140,1804.7,0.00024,60]
[338398906,1726584434408,500.0,0.00024,60]
[338398907,1726584434839,500.0,0.00024,60]
[338398908,1726584434943,324.14174112,0.00024,60]
[338398909,1726584435782,500.0,0.00024,60]
[338398910,1726584435951,500.0,0.00024,60]
[338398912,1726584438156,500.0,0.00024,60]
[338398913,1726584438281,695.24,0.00024,60]
[338398914,1726584438337,500.0,0.00024,60]
[338398915,1726584438932,500.0,0.00024,60]
[338398916,1726584439654,645.07,0.00024,60]
[338398917,1726584440108,601.43,0.00024,60]
[338398918,1726584441096,-35.36734308,0.00014502,2]
[338398919,1726584441123,-300.0,0.00014502,2]
[338398920,1726584441146,-144.12933041,0.00014503,2]
[338398921,1726584441843,500.0,0.00024,60]
[338398922,1726584442023,2710.11,0.00024,60]
[338398923,1726584442275,2326.47,0.00024,60]
[338398924,1726584442398,500.0,0.00024,60]
[338398925,1726584442660,1479.97,0.00024,60]
[338398926,1726584442841,3434.83,0.00024,60]
[338398927,1726584443130,1231.04,0.00024,60]
[338398928,1726584443468,1939.73,0.00024,60]
[338398929,1726584443844,870.25,0.00024,60]
[338398930,1726584443915,586.24,0.00024,60]
[338398931,1726584445714,500.0,0.00024,60]
[338398932,1726584447339,428.29147236,0.00024,60]
[338398933,1726584447812,1886.1,0.00024,60]
[338398934,1726584450302,500.0,0.00024,60]
[338398935,1726584452123,500.0,0.00024,60]
[338398936,1726584452443,556.31,0.00024,60]
[338398937,1726584452971,504.19,0.00024,60]
[338398938,1726584453276,500.0,0.00024,60]
[338398939,1726584454017,500.0,0.00024,60]
[338398940,1726584454545,500.0,0.00024,60]
[338398941,1726584455892,500.0,0.00024,60]
[338398942,1726584457847,500.0,0.00024,60]
[338398943,1726584459303,500.0,0.00024,60]
[338398944,1726584459523,573.97,0.00024,60]
[338398945,1726584459680,500.0,0.00024,60]
[338398946,1726584460016,886.61,0.00024,60]
[338398947,1726584461162,582.93,0.00024,60]
[338398948,1726584462158,594.51,0.00024,60]
[338398949,1726584462222,1495.36,0.00024,60]
[338398950,1726584462624,500.0,0.00024,60]
[338398951,1726584464290,881.84,0.00024,60]
[338398952,1726584464655,500.0,0.00024,60]
[338398953,1726584466268,1743.89,0.00024,60]
[338398954,1726584466527,714.35,0.00024,60]
[338398955,1726584469181,690.9,0.00024,60]
[338398956,1726584470489,1890.66,0.00024,60]
[338398957,1726584470947,991.21,0.00024,60]
[338398958,1726584471244,518.32007184,0.00024,60]
[338398959,1726584471299,500.0,0.00024,60]
[338398960,1726584471726,500.0,0.00024,60]
[338398961,1726584473503,1943.77,0.00024,60]
[338398962,1726584474002,500.0,0.00024,60]
[338398963,1726584474773,500.0,0.00024,60]
[338398964,1726584475150,1865.98,0.00024,60]
[338398965,1726584477198,3862.51,0.00024,60]
[338398966,1726584477979,500.0,0.00024,60]
[338398967,1726584478741,500.0,0.00024,60]
[338398968,1726584478815,500.0,0.00024,60]
[338398969,1726584479358,500.0,0.00024,60]
[338398970,1726584481215,500.0,0.00024,60]
[338398971,1726584481600,1499.0,0.00024,60]
[338398972,1726584481703,892.21,0.00024,60]
[338398973,1726584482402,1031.38,0.00024,60]
[338398974,1726584482517,500.0,0.00024,60]
[338398975,1726584487014,500.64223711,0.00024,60]
[338398976,1726584487251,500.0,0.00024,60]
[338398977,1726584487440,500.0,0.00024,60]
[338398978,1726584488219,505.91459235,0.00024,60]
[338398980,1726584489542,500.0,0.00024,60]
[338398981,1726584489622,500.0,0.00024,60]
[338398982,1726584489695,2652.19,0.00024,60]
[338398983,1726584489872,1000.0,0.00024,60]
[338398984,1726584491493,500.0,0.00024,60]
[338398985,1726584491822,1000.0,0.00024,60]
[338398986,1726584493428,1000.0,0.00024,60]
[338398987,1726584493692,463.45250653,0.00024,60]
[338398988,1726584493797,1857.17,0.00024,60]
[338398989,1726584493856,1809.14,0.00024,60]
[338398990,1726584494196,2317.66,0.00024,60]
[338398991,1726584494915,1000.0,0.00024,60]
[338398992,1726584495068,597.48,0.00024,60]
[338398993,1726584495319,500.0,0.00024,60]
[338398994,1726584495995,1765.81,0.00024,60]
[338398995,1726584496304,1000.0,0.00024,60]
[338398996,1726584496399,500.0,0.00024,60]
[338398997,1726584496900,3580.8,0.00024,60]
[338398998,1726584497525,1000.0,0.00024,60]
[338398999,1726584498130,1132.78,0.00024,60]
[338399000,1726584498278,1053.76,0.00024,60]
[338399001,1726584498657,1000.0,0.00024,60]
[338399002,1726584499118,500.0,0.00024,60]
[338399003,1726584499397,2208.57,0.00024,60]
[338399004,1726584500013,1000.0,0.00024,60]
[338399005,1726584500616,500.50927162,0.00024,60]
[338399006,1726584501117,1000.0,0.00024,60]
[338399007,1726584501471,998.33,0.00024,60]
[338399008,1726584501907,500.0,0.00024,60]
[338399009,1726584502376,1000.0,0.00024,60]
[338399010,1726584502685,500.0,0.00024,60]
[338399011,1726584502994,500.0,0.00024,60]
[338399012,1726584503663,500.0,0.00024,60]
[338399013,1726584503761,500.0,0.00024,60]
[338399014,1726584505346,500.0,0.00024,60]
[338399015,1726584505735,500.0,0.00024,60]
[338399016,1726584505893,2007.48,0.00024,60]
[338399017,1726584506704,742.29,0.00024,60]
[338399018,1726584507193,874.21,0.00024,60]
[338399019,1726584508023,535.9,0.00024,60]
[338399020,1726584508606,1391.54,0.00024,60]
[338399021,1726584510208,500.0,0.00024,60]
[338399022,1726584510879,2100.84,0.00024,60]
[338399023,1726584510931,281.31714527,0.00024,60]
[338399024,1726584511754,1551.92,0.00024,60]
[338399025,1726584512294,681.41,0.00024,60]
[338399026,1726584512363,500.0,0.00024,60]
[338399027,1726584512894,1314.98,0.00024,60]
[338399028,1726584514109,500.0,0.00024,60]
[338399029,1726584515029,807.31,0.00024,60]
[338399030,1726584515653,828.89,0.00024,60]
[338399031,1726584516471,500.0,0.00024,60]
[338399032,1726584516792,500.0,0.00024,60]
[338399033,1726584516927,800.43,0.00024,60]
[338399034,1726584517616,500.0,0.00024,60]
[338399035,1726584517798,500.0,0.00024,60]
[338399036,1726584519232,1190.58,0.00024,60]
[338399037,1726584520609,676.61,0.00024,60]
[338399038,1726584522946,500.0,0.00024,60]
[338399039,1726584524566,1147.24,0.00024,60]
[338399040,1726584524636,500.0,0.00024,60]
[338399041,1726584524706,1425.91,0.00024,60]
[338399042,1726584524768,500.0,0.00024,60]
[338399043,1726584526822,7317.7,0.00024,60]
[338399044,1726584528847,500.0,0.00024,60]
[338399045,1726584529236,1860.61,0.00024,60]
[338399046,1726584530134,1164.03,0.00024,60]
[338399047,1726584532734,633.16,0.00024,60]
[338399048,1726584532798,500.0,0.00024,60]
[338399049,1726584533010,1562.45,0.00024,60]
[338399050,1726584533163,500.0,0.00024,60]
[338399051,1726584533541,500.0,0.00024,60]
[338399052,1726584533891,818.86,0.00024,60]
[338399053,1726584536370,522.64,0.00024,60]
[338399054,1726584537446,500.0,0.00024,60]
[338399055,1726584538692,500.0,0.00024,60]
[338399056,1726584539694,500.0,0.00024,60]
[338399057,1726584541464,3477.0,0.00024,60]
[338399058,1726584542494,944.04,0.00024,60]
[338399059,1726584542941,2500.38,0.00024,60]
[338399060,1726584543729,658.48,0.00024,60]
[338399061,1726584543876,500.0,0.00024,60]
[338399062,1726584544053,2432.39,0.00024,60]
[338399064,1726584545247,500.0,0.00024,60]
[338399065,1726584545381,964.68,0.00024,60]
[338399066,1726584545444,500.0,0.00024,60]
[338399067,1726584546585,500.0,0.00024,60]
[338399068,1726584546893,500.0,0.00024,60]
[338399069,1726584549592,1144.74,0.00024,60]
[338399070,1726584549730,500.0,0.00024,60]
[338399071,1726584551205,1985.05,0.00024,60]
[338399072,1726584556688,1289.09,0.00024,60]
[338399073,1726584557734,505.3144931,0.00024,60]
[338399074,1726584558054,570.64,0.00024,60]
[338399075,1726584558878,500.0,0.00024,60]
[338399076,1726584559431,597.72,0.00024,60]
[338399077,1726584559815,500.0,0.00024,60]
[338399078,1726584559883,500.0,0.00024,60]
[338399079,1726584560855,500.0,0.00024,60]
[338399080,1726584561098,1018.26,0.00024,60]
[338399081,1726584561303,6538.45,0.00024,60]
[338399082,1726584562703,500.0,0.00024,60]
[338399083,1726584563098,-245.0,0.00014502,2]
[338399084,1726584565715,994.28,0.00024,60]
[338399085,1726584566103,-55.0,0.00014502,2]
[338399086,1726584566125,-300.0,0.00014502,2]
[338399087,1726584566150,-417.5180301,0.00014503,2]
[338399089,1726584567981,1064.39,0.00024,60]
[338399090,1726584568179,-4438.35263949,0.00014503,2]
[338399091,1726584568201,-1473.6903022,0.00014503,2]
[338399092,1726584568336,748.99,0.00024,60]
[338399093,1726584568945,500.0,0.00024,60]
[338399095,1726584569150,500.0,0.00024,60]
[338399096,1726584570433,683.61,0.00024,60]
[338399097,1726584572776,500.0,0.00024,60]
[338399098,1726584573716,500.0,0.00024,60]
[338399099,1726584573779,1000.0,0.00024,60]
[338399100,1726584575723,1000.0,0.00024,60]
[338399101,1726584575871,500.0,0.00024,60]
[338399102,1726584576459,500.0,0.00024,60]
[338399103,1726584577481,1588.05,0.00024,60]
[338399104,1726584577547,1000.0,0.00024,60]
[338399105,1726584578177,500.0,0.00024,60]
[338399106,1726584578401,736.34,0.00024,60]
[338399107,1726584579536,1000.0,0.00024,60]
[338399108,1726584579985,813.11,0.00024,60]
[338399109,1726584581213,500.0,0.00024,60]
[338399110,1726584583576,500.0,0.00024,60]
[338399111,1726584583801,1589.69,0.00024,60]
[338399112,1726584585522,500.0,0.00024,60]
[338399113,1726584585752,500.0,0.00024,60]
[338399114,1726584586118,500.0,0.00024,60]
[338399116,1726584586656,500.0,0.00024,60]
[338399117,1726584587126,1621.11,0.00024,60]
[338399118,1726584587469,1135.52,0.00024,60]
[338399119,1726584588048,500.0,0.00024,60]
[338399120,1726584588345,500.0,0.00024,60]
[338399121,1726584590704,835.74,0.00024,60]
[338399122,1726584590766,500.0,0.00024,60]
[338399123,1726584590822,500.0,0.00024,60]
[338399124,1726584591233,500.0,0.00024,60]
[338399125,1726584593523,500.0,0.00024,60]
[338399126,1726584594214,500.0,0.00024,60]
[338399127,1726584595573,500.0,0.00024,60]
[338399128,1726584596717,585.82,0.00024,60]
[338399129,1726584597467,738.99,0.00024,60]
[338399130,1726584597806,500.0,0.00024,60]
[338399131,1726584598232,1907.53,0.00024,60]
[338399132,1726584599537,500.0,0.00024,60]
[338399133,1726584601175,500.0,0.00024,60]
[338399134,1726584602672,500.0,0.00024,60]
[338399135,1726584603230,500.0,0.00024,60]
[338399136,1726584604197,500.0,0.00024,60]
[338399137,1726584605123,2874.82,0.00024,60]
[338399138,1726584605255,367.11,0.00024,60]
[338399139,1726584605616,1947.17,0.00024,60]
[338399140,1726584605909,500.0,0.00024,60]
[338399141,1726584607075,500.0,0.00024,60]
[338399142,1726584607152,500.0,0.00024,60]
[338399143,1726584610516,500.0,0.00024,60]
[338399144,1726584610600,675.68,0.00024,60]
[338399145,1726584612863,500.0,0.00024,60]
[338399146,1726584614789,1650.06,0.00024,60]
[338399147,1726584614889,2750.95,0.00024,60]
[338399148,1726584616580,1653.55,0.00024,60]
[338399149,1726584616927,500.0,0.00024,60]
[338399150,1726584617355,838.95,0.00024,60]
[338399151,1726584617439,2842.23,0.00024,60]
[338399152,1726584619010,2151.16,0.00024,60]
[338399153,1726584619403,825.09,0.00024,60]
[338399154,1726584620065,500.0,0.00024,60]
[338399155,1726584620341,1063.03,0.00024,60]
[338399156,1726584621269,810.66,0.00024,60]
[338399157,1726584622230,1471.15,0.00024,60]
[338399158,1726584623451,500.0,0.00024,60]
[338399159,1726584623878,1019.19,0.00024,60]
[338399160,1726584626108,500.0,0.00024,60]
[338399161,1726584627338,1948.78,0.00024,60]
[338399162,1726584628170,500.0,0.00024,60]
[338399163,1726584628984,561.81,0.00024,60]
[338399164,1726584629106,500.0,0.00024,60]
[338399165,1726584629293,500.0,0.00024,60]
[338399166,1726584630326,954.99,0.00024,60]
[338399167,1726584630386,561.76979001,0.00024,60]
[338399174,1726584632178,500.0,0.00024,60]
[338399198,1726584634850,500.0,0.00024,60]
[338399199,1726584635150,1858.91,0.00024,60]
[338399200,1726584636743,500.0,0.00024,60]
[338399201,1726584636948,647.96,0.00024,60]
[338399202,1726584637769,500.0,0.00024,60]
[338399203,1726584637839,500.0,0.00024,60]
[338399240,1726584638566,-300.0,0.00014502,2]
[338399241,1726584638576,-300.0,0.00014502,2]
[338399242,1726584638586,-3526.3096978,0.00014503,2]
[338399243,1726584638596,-5000.0,0.00014503,2]
[338399244,1726584638605,-203.476674,0.00015099,2]
[338399245,1726584638615,-420.0,0.0001588,2]
[338399246,1726584638624,-420.0,0.00015952,2]
[338399247,1726584638647,-24900.0,0.00016138,2]
[338399248,1726584638657,-3009.5242707,0.00016158,2]
[338399249,1726584638667,-3202.61655665,0.00016368,2]
[338399250,1726584638677,-166.666667,0.00016468,2]
[338399251,1726584638687,-500.0,0.000168,2]
[338399252,1726584638696,-166.666667,0.00016897,2]
[338399253,1726584638706,-500.0,0.00017056,2]
[338399254,1726584638716,-166.666667,0.00017326,2]
[338399255,1726584638726,-587.0,0.00017388,2]
[338399256,1726584638737,-587.0,0.00017548,2]
[338399258,1726584638746,-3202.61655665,0.00017835,2]
[338399260,1726584638757,-500.0,0.000185,2]
[338399263,1726584638767,-500.0,0.00018602,2]
[338399264,1726584638777,-600.0,0.00018603,2]
[338399265,1726584638786,-600.0,0.00018624,2]
[338399266,1726584638796,-524.0,0.0001895,2]
[338399267,1726584638806,-150.0,0.0001895,2]
[338399268,1726584638816,-661.0,0.0001895,2]
[338399269,1726584638825,-676.95,0.00019,2]
[338399270,1726584638835,-500.0,0.0001902,2]
[338399271,1726584638844,-823.0,0.0001904,2]
[338399272,1726584638854,-151.0,0.0001905,2]
[338399273,1726584638863,-177.662,0.0001917,2]
[338399275,1726584638872,-169.240387,0.00019171,2]
[338399277,1726584638891,-437.743406,0.00019171,2]
[338399279,1726584638900,-169.240387,0.00019171,2]
[338399281,1726584638909,-183.865086,0.00019171,2]
[338399282,1726584638919,-169.240387,0.00019171,2]
[338399285,1726584638929,-161.890724,0.00019178,2]
[338399287,1726584638939,-1141.275062,0.00019178,2]
[338399289,1726584638948,-335.191265,0.000192,8]
[338399291,1726584638959,-151.0,0.00019271,2]
[338399293,1726584638968,-500.0,0.00019277,2]
[338399295,1726584638978,-1000.0,0.00019289,2]
[338399297,1726584638988,-823.0,0.00019302,2]
[338399299,1726584639001,-3202.61655665,0.00019303,2]
[338399301,1726584639010,-437.743406,0.00019411,2]
[338399303,1726584639020,-183.865086,0.00019411,2]
[338399304,1726584639030,-169.240387,0.00019491,2]
[338399306,1726584639040,-151.0,0.00019492,2]
[338399308,1726584639049,-160.0,0.00019546,3]
[338399310,1726584639059,-437.743406,0.0001965,2]
[338399312,1726584639070,-169.240387,0.0001965,2]
[338399313,1726584639080,-183.865086,0.0001965,2]
[338399315,1726584639090,-169.240387,0.0001965,2]
[338399317,1726584639100,-620.56265831,0.00019695,2]
[338399319,1726584639109,-151.0,0.00019713,2]
[338399321,1726584639119,-6073.64693811,0.000198,2]
[338399323,1726584639129,-169.240387,0.0001981,2]
[338399324,1726584639143,-154.11553568,0.00019836,2]
[338399325,1726584639153,-1141.275062,0.00019863,2]
[338399327,1726584639162,-203.41875347,0.00019864,2]
[338399329,1726584639172,-437.743406,0.0001989,2]
[338399331,1726584639185,-183.865086,0.0001989,2]
[338399333,1726584639198,-1000.0,0.0001989,2]
[338399335,1726584639207,-5000.0,0.000199,3]
[338399336,1726584639217,-2813.17256973,0.000199,2]
[338399337,1726584639226,-151.0,0.00019934,2]
[338399338,1726584639235,-2500.0,0.00019938,2]
[338399339,1726584639245,-2500.0,0.00019947,2]
[338399340,1726584639254,-2500.0,0.00019956,2]
[338399341,1726584639263,-41366.9094441,0.00019964,3]
[338399342,1726584639273,-4462.44952343,0.00019964,3]
[338399343,1726584639282,-731.12,0.00019964,3]
[338399344,1726584639292,-2500.0,0.00019965,2]
[338399345,1726584639302,-2500.0,0.00019965,2]
[338399346,1726584639311,-373.97168573,0.00019969,2]
[338399347,1726584639321,-500.0,0.00019969,2]
[338399348,1726584639330,-430.99505741,0.00019969,2]
[338399349,1726584639339,-500.0,0.00019969,2]
[338399350,1726584639349,-500.0,0.00019969,2]
[338399351,1726584639358,-582.12865471,0.00019969,2]
[338399352,1726584639367,-82733.8188882,0.0001997,3]
[338399353,1726584639377,-8924.89904686,0.0001997,3]
[338399354,1726584639392,-2500.0,0.00019974,2]
[338399355,1726584639402,-2500.0,0.00019974,2]
[338399356,1726584639411,-59381.23594638,0.00019979,3]
[338399357,1726584639498,500.0,0.00024,60]
[338399372,1726584640597,-23352.58294182,0.00019979,3]
[338399373,1726584640608,-8924.89904686,0.00019979,3]
[338399374,1726584640617,-6823.43342981,0.0001998,3]
[338399375,1726584640629,-75910.38545839,0.0001998,3]
[338399376,1726584640643,-8924.89904686,0.0001998,3]
[338399377,1726584640653,-2500.0,0.00019982,2]
[338399378,1726584640663,-2500.0,0.00019982,2]
[338399379,1726584640672,-4462.44952343,0.0001999,3]
[338399380,1726584640681,-2500.0,0.00019991,2]
[338399381,1726584640691,-2500.0,0.00019991,2]
[338399382,1726584640701,-168.77768085,0.00019999,2]
[338399383,1726584640711,-721.36596579,0.00019999,2]
[338399384,1726584640720,-41210.33541789,0.0002,2]
[338399385,1726584640730,-2500.0,0.0002,2]
[338399386,1726584640740,-500.0,0.0002,2]
[338399387,1726584640751,-2128.6732245,0.0002,2]
[338399388,1726584640763,-371.3267755,0.0002,2]
[338399389,1726584640772,-175.84491346,0.0002,2]
[338399390,1726584640782,-184.0,0.0002,2]
[338399391,1726584640791,-2304.17402748,0.0002,2]
[338399392,1726584640801,-1002.241943,0.0002,2]
[338399393,1726584640811,-160.0,0.00020018,10]
[338399394,1726584640820,-329.775699,0.0002013,2]